bitfinex/quotes_SOLUSD_20250630
["timestamp","ask_amount","ask_price","bid_price","bid_amount"]
[1751294631627,8.80259532,152.03,152.01,94.17851457]
[1751294632045,8.80259532,152.03,152.01,110.62480099]
[1751294632752,8.80259532,152.04,152.01,110.62480099]
[1751294634951,8.80259532,152.05,152.01,110.62480099]
[1751294635332,8.80259532,152.04,152.01,110.62480099]
[1751294635926,1.5281,152.09,152.01,115.90844653]
[1751294636145,1.5281,152.09,152.01,264.00844653]
[1751294636645,5.28364554,152.08,152.03,5.28364554]
[1751294636944,5.28364554,152.07,152.02,52.69110258]
[1751294637126,5.28364554,152.06,152.02,288.39110258]
[1751294637327,5.28364554,152.06,152.02,287.7332944]
[1751294638231,5.28364554,152.06,152.03,23.02177201]
[1751294638628,5.38364554,152.07,152.03,23.02177201]
[1751294640549,5.38364554,152.07,152.03,258.72177201]
[1751294641134,5.28364554,152.06,152.03,258.72177201]
[1751294641339,0.1,152.07,152.03,258.72177201]
[1751294641540,5.28364554,152.06,152.03,258.72177201]
[1751294641735,0.1,152.07,152.05,6.57678395]
[1751294641941,0.1,152.07,152.05,247.56042949]
[1751294642552,0.1,152.07,152.06,30.4532944]
[1751294642759,0.1,152.07,152.06,57.11092954]
[1751294644154,0.1,152.07,152.06,63.68728098]
[1751294644559,0.1,152.07,152.06,91.78728098]
[1751294644851,0.1,152.07,152.06,327.77160412]
[1751294645030,0.1,152.14,152.07,0.28432314]
[1751294645226,5.56488227,152.27,152.18,18.64964886]
[1751294645453,5.28364554,152.27,152.22,0.28432314]
[1751294645637,5.28364554,152.25,152.21,31.28364554]
[1751294645833,5.28364554,152.27,152.22,52.67023829]
[1751294646039,5.28364554,152.28,152.23,5.28364554]
[1751294646238,5.28364554,152.29,152.24,28.2736613]
[1751294646433,2.9150883,152.31,152.24,6.56857593]
[1751294646434,5.28364554,152.28,152.24,6.56857593]
[1751294646653,5.28364554,152.29,152.24,39.93222147]
[1751294646959,1.3909883,152.31,152.24,39.93222147]
[1751294647138,1.3909883,152.31,152.25,0.65681444]
[1751294647339,5.28364554,152.29,152.25,0.65681444]
[1751294647753,1.3909883,152.31,152.25,0.65681444]
[1751294647960,8.77742086,152.29,152.25,0.65681444]
[1751294648263,8.77742086,152.26,152.24,54.08]
[1751294648566,8.77742086,152.3,152.22,53.29866353]
[1751294648742,8.77742086,152.3,152.22,79.29866353]
[1751294649435,9.43501275,152.3,152.21,28.08]
[1751294649652,7.95660293,152.31,152.22,18.64964886]
[1751294649952,7.95660293,152.31,152.22,27.42706972]
[1751294649953,8.77742086,152.26,152.22,27.42706972]
[1751294650146,8.77742086,152.25,152.22,106.24964886]
[1751294650345,8.77742086,152.25,152.23,6.56900742]
[1751294651156,6.56645076,152.29,152.23,6.56900742]
[1751294651457,1.3909883,152.31,152.24,18.64964886]
[1751294651650,1.3909883,152.31,152.26,18.64964886]
[1751294651854,8.77742086,152.3,152.26,25.80642017]
[1751294652348,8.77742086,152.3,152.27,6.5672818]
[1751294653061,8.77742086,152.29,152.27,6.5672818]
[1751294653554,8.77742086,152.29,152.26,6.5]
[1751294653762,8.77742086,152.27,152.26,6.5]
[1751294653943,8.77742086,152.27,152.26,13.06768447]
[1751294654140,8.77742086,152.27,152.26,6.5]
[1751294654950,8.77742086,152.27,152.22,6.56929132]
[1751294655258,8.77742086,152.23,152.22,6.56929132]
[1751294655461,8.77742086,152.23,152.21,6.56981859]
[1751294655663,8.77742086,152.22,152.21,6.56981859]
[1751294656868,8.77742086,152.22,152.21,94.16981859]
[1751294658057,0.65759189,152.29,152.21,94.16981859]
[1751294658245,8.77742086,152.25,152.21,122.22981859]
[1751294658650,1.4909883,152.31,152.25,44.64964886]
[1751294658853,10.26840916,152.31,152.28,18.64964886]
[1751294659068,1.4909883,152.31,152.28,25.14964886]
[1751294659273,1.4909883,152.31,152.26,28.71677131]
[1751294659274,10.26840916,152.31,152.26,9.43419217]
[1751294659474,8.77742086,152.3,152.27,53.20964886]
[1751294659649,8.77742086,152.3,152.27,34.56]
[1751294659976,1.4909883,152.31,152.25,76.96015681]
[1751294660273,1.4909883,152.31,152.28,10.3]
[1751294660655,8.05662172,152.31,152.25,13.06798524]
[1751294660882,1.4909883,152.31,152.25,13.06798524]
[1751294661246,8.77742086,152.26,152.25,13.06798524]
[1751294662245,8.77742086,152.26,152.19,16.42592529]
[1751294662246,1.513,152.26,152.19,16.42592529]
[1751294662568,8.77742086,152.22,152.19,48.99665924]
[1751294663655,8.77742086,152.22,152.19,136.59665924]
[1751294664163,8.77742086,152.27,152.21,9.061744]
[1751294664370,8.77742086,152.27,152.22,28.08401361]
[1751294664668,8.77742086,152.27,152.22,19.30659275]
[1751294664856,8.77742086,152.28,152.23,8.77742086]
[1751294665057,1.513,152.3,152.24,6.5]
[1751294665257,8.77742086,152.28,152.24,6.5]
[1751294665458,8.77742086,152.27,152.24,6.5]
[1751294665854,8.77742086,152.27,152.25,6.56814449]
[1751294666059,8.77742086,152.27,152.25,94.16814449]
[1751294666257,8.77742086,152.26,152.25,87.6]
[1751294666453,8.77742086,152.26,152.23,10.3]
[1751294666652,1.513,152.3,152.23,120.89140425]
[1751294666872,8.77742086,152.26,152.23,120.89140425]
[1751294667172,1.513,152.3,152.24,18.64964886]
[1751294667376,8.77742086,152.27,152.23,120.89140425]
[1751294667550,8.77742086,152.26,152.23,120.89140425]
[1751294669056,1.613,152.3,152.23,120.89140425]
[1751294669262,8.77742086,152.27,152.23,120.89140425]
[1751294669562,8.77742086,152.26,152.23,120.89140425]
[1751294670661,8.77742086,152.27,152.23,120.89140425]
[1751294671271,8.77742086,152.27,152.23,121.54830499]
[1751294671669,8.77742086,152.28,152.23,130.32572585]
[1751294671861,8.77742086,152.27,152.23,121.54830499]
[1751294672271,1.613,152.3,152.23,121.54830499]
[1751294672272,8.87742086,152.26,152.23,121.54830499]
[1751294672777,8.87742086,152.26,152.23,120.89140425]
[1751294673159,8.77742086,152.25,152.23,120.89140425]
[1751294673354,0.1,152.26,152.23,104.4688857]
[1751294673355,8.77742086,152.24,152.23,104.4688857]
[1751294673771,8.77742086,152.24,152.23,97.9]
[1751294673963,8.77742086,152.24,152.23,104.46900742]
[1751294674776,8.77742086,152.24,152.23,97.9]
[1751294675277,8.77742086,152.24,152.23,104.46900742]
[1751294676683,8.77742086,152.24,152.23,97.9]
[1751294677271,8.77742086,152.24,152.23,10.3]
[1751294677466,15.34599679,152.24,152.23,10.3]
[1751294677683,15.34599679,152.24,152.2,87.6]
[1751294677864,8.77742086,152.21,152.2,87.6]
[1751294678263,8.77742086,152.21,152.19,6.5]
[1751294678459,2.19939189,152.23,152.17,87.6]
[1751294678460,24.12531044,152.2,152.17,87.6]
[1751294678672,8.77742086,152.18,152.17,87.6]
[1751294681173,8.77742086,152.18,152.15,6.57245327]
[1751294681398,9.43501275,152.2,152.15,6.57245327]
[1751294681579,8.77742086,152.16,152.15,6.57245327]
[1751294681889,8.77742086,152.16,152.15,94.17245327]
[1751294683366,8.77742086,152.16,152.15,87.6]
[1751294684584,11.07831275,152.16,152.07,13.05591898]
[1751294684785,8.77742086,152.09,152.08,0.08]
[1751294684975,8.77742086,152.1,152.08,87.68]
[1751294686295,8.77742086,152.1,152.08,87.6]
[1751294686698,8.77742086,152.1,152.09,6.57505424]
[1751294686891,8.77742086,152.1,152.09,94.17505424]
[1751294687198,8.77742086,152.11,152.09,110.61268985]
[1751294689880,8.77742086,152.1,152.09,110.61268985]
[1751294690493,8.77742086,152.1,152.09,94.17505424]
[1751294691590,8.77742086,152.12,152.09,94.17505424]
[1751294691797,8.77742086,152.1,152.09,94.17505424]
[1751294692488,8.77742086,152.1,152.09,6.57505424]
[1751294692882,8.77742086,152.1,152.07,23.01569837]
[1751294693998,8.77742086,152.11,152.08,18.64964886]
[1751294694198,8.77742086,152.11,152.08,106.24964886]
[1751294694401,8.77742086,152.12,152.08,106.24964886]
[1751294694986,8.77742086,152.1,152.09,6.57505424]
[1751294696185,0.65759189,152.16,152.09,23.01268985]
[1751294696386,6.5718737,152.17,152.09,23.01268985]
[1751294696387,8.77742086,152.1,152.09,110.61268985]
[1751294696582,8.77742086,152.1,152.09,94.17505424]
[1751294697092,8.77742086,152.11,152.09,23.01268985]
[1751294697607,8.77742086,152.1,152.09,23.01268985]
[1751294697798,8.77742086,152.11,152.09,110.61268985]
[1751294697982,8.77742086,152.12,152.09,110.61268985]
[1751294698786,8.77742086,152.1,152.09,94.17505424]
[1751294700598,8.77742086,152.1,152.09,87.6]
[1751294700782,8.77742086,152.1,152.09,94.17505424]
[1751294700984,7.22935727,152.17,152.09,94.17505424]
[1751294701194,8.77742086,152.11,152.09,94.17505424]
[1751294701408,8.77742086,152.1,152.09,6.57505424]
[1751294702591,0.65759189,152.15,152.09,6.57505424]
[1751294702592,1.6504,152.2,152.1,18.64964886]
[1751294702800,8.77742086,152.18,152.13,8.77742086]
[1751294702995,1.6504,152.2,152.14,8.77742086]
[1751294702996,8.77742086,152.19,152.14,8.77742086]
[1751294703316,6.2167,152.22,152.17,8.77742086]
[1751294703317,8.87742086,152.22,152.17,8.77742086]
[1751294703497,8.77742086,152.2,152.16,18.64964886]
[1751294703897,0.1,152.22,152.16,18.64964886]
[1751294703898,8.77742086,152.21,152.17,6.57159755]
[1751294704096,8.77742086,152.21,152.17,23.00059143]
[1751294704309,0.1,152.22,152.21,18.64964886]
[1751294704508,0.1,152.22,152.21,62.27139286]
[1751294704691,0.1,152.26,152.24,26.0]
[1751294704893,0.1,152.26,152.25,9.4342353]
[1751294706013,0.1,152.26,152.25,16.00237979]
[1751294706211,0.1,152.26,152.25,34.65202865]
[1751294707118,0.1,152.26,152.25,25.87460779]
[1751294707420,0.1,152.26,152.25,34.65202865]
[1751294707620,0.1,152.26,152.25,7.22495893]
[1751294707829,0.1,152.26,152.25,15.34556535]
[1751294710943,0.1,152.26,152.25,6.56814449]
[1751294711234,8.87742086,152.26,152.24,6.5684863]
[1751294711408,8.87742086,152.26,152.23,6.56900742]
[1751294712299,0.1,152.26,152.23,6.56900742]
[1751294712502,0.1,152.26,152.23,34.65297788]
[1751294712727,0.1,152.26,152.23,51.07549643]
[1751294713034,0.1,152.26,152.25,8.77742086]
[1751294713332,0.1,152.26,152.25,55.46706972]
[1751294713736,0.1,152.26,152.25,34.60814449]
[1751294714041,0.1,152.26,152.25,6.56814449]
[1751294714734,0.1,152.26,152.25,94.16814449]
[1751294715931,0.1,152.26,152.25,113.47460779]
[1751294717829,8.87742086,152.26,152.25,88.25681444]
[1751294718027,8.87742086,152.26,152.22,104.46936297]
[1751294718330,8.77742086,152.23,152.22,104.46936297]
[1751294719954,8.77742086,152.23,152.22,97.9]
[1751294720112,8.77742086,152.23,152.22,10.3]
[1751294722229,8.77742086,152.23,152.22,16.86943896]
[1751294723236,8.77742086,152.23,152.22,10.3]
[1751294723420,8.77742086,152.23,152.22,97.9]
[1751294723619,8.87742086,152.23,152.22,97.9]
[1751294724434,15.44642828,152.23,152.22,97.9]
[1751294724615,8.87742086,152.23,152.22,97.9]
[1751294724816,15.44642828,152.23,152.22,10.3]
[1751294725023,21.85522828,152.23,152.15,87.6]
[1751294725239,8.77742086,152.17,152.15,87.6]
[1751294725411,8.77742086,152.16,152.15,87.6]
[1751294725616,8.77742086,152.17,152.15,87.6]
[1751294725919,8.77742086,152.16,152.15,87.6]
[1751294726820,8.77742086,152.16,152.1,148.1]
[1751294726821,8.77742086,152.16,152.1,6.57462195]
[1751294727054,8.77742086,152.12,152.1,6.57462195]
[1751294728823,8.77742086,152.13,152.1,23.01117684]
[1751294729922,8.77742086,152.12,152.1,23.01117684]
[1751294730330,8.77742086,152.12,152.11,10.3]
[1751294730943,8.77742086,152.13,152.11,10.3]
[1751294731323,8.77742086,152.12,152.11,10.3]
[1751294732032,8.77742086,152.12,152.09,13.05503044]
[1751294732230,0.65759189,152.14,152.09,13.05503044]
[1751294732432,8.77742086,152.1,152.09,13.05503044]
[1751294732658,8.77742086,152.12,152.09,13.05503044]
[1751294732863,8.77742086,152.13,152.09,13.05503044]
[1751294733031,8.77742086,152.13,152.09,29.49266605]
[1751294733231,7.22906707,152.18,152.09,29.49266605]
[1751294733468,8.77742086,152.14,152.09,125.87008691]
[1751294734028,8.77742086,152.13,152.09,117.09266605]
[1751294734273,8.77742086,152.12,152.09,117.09266605]
[1751294735341,8.77742086,152.12,152.11,6.57418973]
[1751294735546,8.77742086,152.13,152.11,6.57418973]
[1751294736933,0.65759189,152.17,152.11,6.57418973]
[1751294737133,8.77742086,152.13,152.11,6.57418973]
[1751294737330,8.77742086,152.12,152.11,94.17418973]
[1751294739481,0.65759189,152.16,152.11,94.17418973]
[1751294739839,8.77742086,152.12,152.11,94.17418973]
[1751294741070,8.77742086,152.12,152.11,6.57418973]
[1751294741667,8.77742086,152.12,152.1,9.6]
[1751294741968,6.57248097,152.15,152.1,9.6]
[1751294741969,8.77742086,152.11,152.1,9.6]
[1751294742884,8.77742086,152.11,152.06,94.37617719]
[1751294743168,8.77742086,152.07,152.06,94.37617719]
[1751294743670,6.5157,152.12,152.06,94.37617719]
[1751294743977,8.77742086,152.09,152.06,110.81705579]
[1751294745265,8.77742086,152.09,152.07,9.6]
[1751294745864,8.77742086,152.08,152.07,9.6]
[1751294746066,8.77742086,152.08,152.07,97.2]
[1751294746453,8.77742086,152.08,152.07,87.6]
[1751294749264,15.35290744,152.08,152.07,87.6]
[1751294749479,8.77742086,152.08,152.07,87.6]
[1751294749854,0.65759189,152.09,152.06,0.2]
[1751294750073,8.77742086,152.07,152.06,0.2]
[1751294751462,16.01093173,152.07,152.06,0.2]
[1751294751777,9.43501275,152.07,152.06,0.2]
[1751294752181,16.01093173,152.07,152.06,0.2]
[1751294753763,17.53533173,152.07,152.06,0.2]
[1751294754075,17.53533173,152.07,152.0,6.77880056]
[1751294754279,8.77742086,152.01,152.0,0.2]
[1751294755779,8.77742086,152.01,152.0,6.77894736]
[1751294755956,8.77742086,152.01,152.0,0.2]
[1751294756161,6.5776932,152.03,152.0,0.2]
[1751294756386,8.77742086,152.01,152.0,0.2]
[1751294758580,7.23572519,152.02,152.0,0.2]
[1751294758784,8.77742086,152.01,152.0,0.2]
[1751294759178,8.77742086,152.02,152.0,6.77894736]
[1751294759769,7.23427713,152.06,152.0,6.77894736]
[1751294759770,8.77742086,152.01,152.0,6.77894736]
[1751294760370,7.23427713,152.06,152.0,6.77894736]
[1751294760569,8.77742086,152.01,152.0,6.77894736]
[1751294762291,15.35593543,152.01,152.0,0.2]
[1751294763590,17.55484172,152.01,152.0,0.2]
[1751294763892,9.43501275,152.01,152.0,0.2]
[1751294764089,9.43501275,152.01,152.0,6.77894736]
[1751294764090,8.77742086,152.01,152.0,6.77894736]
[1751294765875,0.65759189,152.04,152.0,6.77894736]
[1751294766072,8.77742086,152.03,152.0,6.77894736]
[1751294766274,8.77742086,152.02,152.0,6.77894736]
[1751294766893,8.77742086,152.01,152.0,0.2]
[1751294767775,6.57774298,152.03,152.0,0.2]
[1751294767776,0.65759189,152.03,152.0,0.2]
[1751294767984,8.77742086,152.01,152.0,0.2]
[1751294769697,15.35593543,152.01,152.0,0.2]
[1751294769895,8.77742086,152.01,152.0,0.2]
[1751294770105,9.43501275,152.01,152.0,0.2]
[1751294770595,8.77742086,152.01,152.0,0.2]
[1751294771892,5.28765736,152.01,152.0,0.2]
[1751294772917,0.65759189,152.03,152.0,0.2]
[1751294773110,5.28765736,152.01,152.0,6.77890847]
[1751294773686,33.23457101,152.05,152.0,6.77890847]
[1751294773687,5.28765736,152.02,152.0,6.77890847]
[1751294774980,5.28765736,152.01,152.0,6.77890847]
[1751294775279,2.18199189,152.07,152.0,6.77890847]
[1751294775482,8.75806263,152.07,152.0,94.37890847]
[1751294775785,5.28765736,152.03,152.0,94.37890847]
[1751294777604,5.28765736,152.04,152.0,94.37890847]
[1751294778395,5.28765736,152.03,152.0,94.37890847]
[1751294780190,0.1,152.07,152.05,26.0]
[1751294780395,0.1,152.07,152.06,5.5719805]
[1751294780790,0.1,152.07,152.06,0.28432314]
[1751294781000,0.1,152.07,152.06,14.5719805]
[1751294781196,0.1,152.07,152.06,120.82162936]
[1751294781405,0.1,152.07,152.06,121.4792645]
[1751294781996,0.1,152.07,152.06,116.19160714]
[1751294782206,0.1,152.07,152.06,121.4792645]
[1751294782398,0.1,152.07,152.06,128.05561594]
[1751294782592,0.1,152.07,152.06,127.3979808]
[1751294782991,0.1,152.07,152.06,128.05561594]
[1751294783195,0.1,152.07,152.06,129.69161594]
[1751294783805,0.1,152.07,152.06,133.20067249]
[1751294784006,0.1,152.07,152.06,132.54303735]
[1751294785695,0.1,152.07,152.06,123.74632344]
[1751294785895,0.1,152.07,152.06,133.20067249]
[1751294786086,0.1,152.07,152.06,132.54303735]
[1751294787907,0.1,152.07,152.06,123.74632344]
[1751294788114,0.1,152.07,152.06,133.20067249]
[1751294788412,8.79671391,152.11,152.08,0.28432314]
[1751294788611,8.79671391,152.11,152.08,87.78432314]
[1751294789189,8.79671391,152.12,152.08,87.78432314]
[1751294789896,8.79671391,152.12,152.09,6.57505424]
[1751294790418,0.1,152.13,152.12,0.28432314]
[1751294790601,0.1,152.13,152.12,97.2384128]
[1751294790803,0.1,152.13,152.12,88.44169889]
[1751294791206,8.89671391,152.13,152.12,87.5]
[1751294792112,8.89671391,152.13,152.12,94.07375755]
[1751294792306,8.89671391,152.13,152.12,87.5]
[1751294793015,8.89671391,152.13,152.08,94.07536163]
[1751294793206,8.79671391,152.1,152.08,6.57536163]
[1751294793416,0.1,152.13,152.12,0.28432314]
[1751294793606,0.1,152.13,152.12,69.49176166]
[1751294793917,0.1,152.13,152.12,157.09176166]
[1751294794100,0.1,152.14,152.13,18.933972]
[1751294794301,0.1,152.14,152.13,27.73068591]
[1751294794720,0.1,152.22,152.21,18.64964886]
[1751294794894,0.1,152.22,152.21,0.28432314]
[1751294796024,0.1,152.22,152.21,25.50384257]
[1751294796519,0.1,152.22,152.21,34.95754353]
[1751294797101,0.1,152.22,152.17,87.6]
[1751294797102,8.89671391,152.22,152.18,27.44636277]
[1751294797422,8.89671391,152.22,152.19,0.28432314]
[1751294797604,0.1,152.22,152.19,0.28432314]
[1751294798012,8.89671391,152.22,152.19,0.28432314]
[1751294798213,8.89671391,152.22,152.2,6.57030223]
[1751294798214,0.1,152.22,152.2,6.57030223]
[1751294798522,8.89671391,152.22,152.2,6.57030223]
[1751294800124,0.1,152.22,152.21,0.28432314]
[1751294800425,0.1,152.22,152.21,6.85419371]
[1751294800999,0.1,152.22,152.21,34.30055648]
[1751294801605,0.1,152.22,152.21,25.50384257]
[1751294802234,0.1,152.26,152.23,0.28432314]
[1751294802416,0.1,152.26,152.25,8.79671391]
[1751294802606,0.1,152.26,152.25,96.29671391]
[1751294802807,0.1,152.26,152.25,87.5]
[1751294803018,0.1,152.26,152.25,96.95352835]
[1751294803302,0.1,152.26,152.25,88.15681444]
[1751294803536,0.1,152.26,152.25,96.95352835]
[1751294804227,0.1,152.26,152.25,103.52167284]
[1751294804608,0.1,152.26,152.25,122.45564484]
[1751294806213,0.1,152.26,152.25,113.65893093]
[1751294807116,0.1,152.26,152.22,48.69349742]
[1751294807117,8.89671391,152.26,152.19,6.57073395]
[1751294807317,0.1,152.26,152.19,6.57073395]
[1751294807519,8.79671391,152.22,152.19,6.57073395]
[1751294807712,8.79671391,152.22,152.2,0.28432314]
[1751294807919,8.79671391,152.22,152.19,22.99756882]
[1751294808133,8.79671391,152.21,152.19,6.57073395]
[1751294808318,8.79671391,152.21,152.18,25.22081458]
[1751294808516,8.79671391,152.21,152.19,0.28432314]
[1751294808716,8.79671391,152.21,152.18,25.22081458]
[1751294808717,8.79671391,152.2,152.18,6.57116572]
[1751294808932,8.79671391,152.19,152.17,12.99148893]
[1751294809140,8.79671391,152.18,152.17,12.99148893]
[1751294809319,8.79671391,152.2,152.18,0.28432314]
[1751294809639,8.79671391,152.2,152.17,12.99148893]
[1751294809841,8.79671391,152.19,152.17,12.99148893]
[1751294810007,8.79671391,152.19,152.18,0.28432314]
[1751294810209,8.79671391,152.19,152.17,12.99148893]
[1751294810557,8.79671391,152.18,152.17,12.99148893]
[1751294811821,8.79671391,152.18,152.17,6.42]
[1751294812545,8.79671391,152.18,152.11,35.08424034]
[1751294812747,8.79671391,152.14,152.12,0.36432314]
[1751294812925,8.79671391,152.14,152.12,94.35808069]
[1751294813233,8.79671391,152.15,152.12,94.35808069]
[1751294813545,8.79671391,152.15,152.12,94.07375755]
[1751294813930,8.79671391,152.16,152.13,0.28432314]
[1751294814846,1.6623,152.19,152.13,0.28432314]
[1751294815135,8.79671391,152.16,152.13,87.78432314]
[1751294815519,8.79671391,152.15,152.13,87.78432314]
[1751294815713,8.79671391,152.16,152.14,6.57289338]
[1751294816317,1.5904,152.23,152.14,31.80184075]
[1751294816514,1.5904,152.23,152.15,0.28432314]
[1751294816515,8.79671391,152.18,152.15,0.28432314]
[1751294816817,8.79671391,152.18,152.15,87.78432314]
[1751294817021,8.79671391,152.16,152.15,87.5]
[1751294817627,8.79671391,152.17,152.16,6.57202944]
[1751294817831,8.79671391,152.17,152.16,6.06653644]
[1751294818041,8.79671391,152.17,152.15,94.07243157]
[1751294818336,8.79671391,152.16,152.15,94.07243157]
[1751294819334,8.79671391,152.16,152.13,6.57316934]
[1751294819539,8.79671391,152.14,152.13,6.57316934]
[1751294819738,8.79671391,152.14,152.11,6.57418973]
[1751294819925,8.79671391,152.13,152.11,6.57418973]
[1751294820326,8.79671391,152.14,152.11,6.57418973]
[1751294820523,8.79671391,152.15,152.11,15.37090364]
[1751294820727,8.79671391,152.15,152.11,31.80637796]
[1751294820954,15.36710872,152.2,152.11,31.80637796]
[1751294820955,8.79671391,152.14,152.11,110.50966405]
[1751294821254,8.79671391,152.15,152.11,110.50966405]
[1751294821627,8.79671391,152.16,152.12,0.28432314]
[1751294821944,8.79671391,152.16,152.12,87.78432314]
[1751294822746,8.79671391,152.16,152.13,6.57332544]
[1751294822948,1.5904,152.23,152.14,9.08103705]
[1751294823242,2.24799189,152.23,152.16,0.28432314]
[1751294823418,8.79671391,152.19,152.16,0.28432314]
[1751294823618,8.79671391,152.19,152.16,87.78432314]
[1751294823919,8.79671391,152.2,152.16,87.78432314]
[1751294824833,8.79671391,152.19,152.17,6.57159755]
[1751294825033,1.5904,152.23,152.17,23.00059143]
[1751294825231,8.79671391,152.21,152.17,110.50059143]
[1751294826342,8.79671391,152.2,152.17,110.50059143]
[1751294826548,8.79671391,152.19,152.17,110.50059143]
[1751294826860,8.79671391,152.18,152.17,94.07159755]
[1751294827062,8.79671391,152.18,152.17,87.5]
[1751294827734,8.79671391,152.18,152.17,94.07159755]
[1751294829341,8.79671391,152.18,152.17,87.5]
[1751294829724,8.79671391,152.18,152.15,94.07230155]
[1751294829931,6.57076412,152.19,152.15,94.07230155]
[1751294829932,8.79671391,152.16,152.15,94.07230155]
[1751294830437,8.79671391,152.17,152.15,94.07230155]
[1751294831141,8.79671391,152.16,152.15,94.07230155]
[1751294831454,8.79671391,152.16,152.13,87.5]
[1751294831626,8.79671391,152.14,152.1,93.92]
[1751294831827,8.79671391,152.13,152.1,100.4943804]
[1751294832837,1.5912,152.16,152.1,100.4943804]
[1751294833161,8.79671391,152.12,152.1,100.4943804]
[1751294834334,8.79671391,152.11,152.08,6.57548658]
[1751294834543,6.57322512,152.14,152.08,6.57548658]
[1751294834544,8.79671391,152.09,152.08,6.57548658]
[1751294834747,2.24879189,152.16,152.08,32.09524009]
[1751294834940,8.79671391,152.12,152.08,23.01420304]
[1751294835154,8.79671391,152.11,152.08,6.57548658]
[1751294835338,8.79671391,152.09,152.07,87.5]
[1751294835675,8.79671391,152.09,152.06,6.57603427]
[1751294836354,0.65759189,152.14,152.06,31.81362678]
[1751294836538,6.57270193,152.15,152.08,8.79671391]
[1751294836539,8.79671391,152.12,152.08,8.79671391]
[1751294836743,2.24879189,152.16,152.08,8.79671391]
[1751294837052,8.79671391,152.13,152.08,8.79671391]
[1751294837254,8.79671391,152.14,152.09,9.08103705]
[1751294837847,0.65759189,152.13,152.05,6.77664872]
[1751294838046,8.79671391,152.09,152.05,6.77664872]
[1751294838644,8.79671391,152.11,152.06,8.93887548]
[1751294838840,8.79671391,152.11,152.06,0.28432314]
[1751294839075,8.79671391,152.11,152.06,9.08103705]
[1751294839755,8.79671391,152.08,152.05,6.77664872]
[1751294839936,8.79671391,152.06,152.05,0.2]
[1751294842447,0.65759189,152.09,152.05,0.2]
[1751294842763,8.79671391,152.06,152.05,0.2]
[1751294843340,8.79671391,152.06,152.05,6.77678395]
[1751294843550,8.79671391,152.06,152.05,0.2]
[1751294845162,8.79671391,152.06,152.04,0.2]
[1751294845163,41.37306535,152.06,152.0,0.2]
[1751294845366,8.79671391,152.01,152.0,0.2]
[1751294845951,5.28956839,152.01,152.0,0.2]
[1751294847566,5.28956839,152.01,152.0,6.77894736]
[1751294848942,11.86523223,152.08,152.0,23.22631578]
[1751294848943,5.28956839,152.03,152.0,23.22631578]
[1751294849287,5.28956839,152.04,152.0,23.22631578]
[1751294849878,5.28956839,152.03,152.0,23.22631578]
[1751294850384,5.28956839,152.01,152.0,94.27894736]
[1751294851370,5.28956839,152.07,152.01,18.64964886]
[1751294851588,5.28956839,152.07,152.03,0.28432314]
[1751294851958,5.28956839,152.06,152.03,0.28432314]
[1751294852349,5.28956839,152.07,152.03,5.57389153]
[1751294853175,5.28956839,152.07,152.04,6.57721652]
[1751294853679,5.28956839,152.1,152.06,5.28956839]
[1751294853861,8.8007778,152.09,152.05,115.3347498]
[1751294854751,34.23819189,152.14,152.06,6.57635144]
[1751294854955,8.8007778,152.07,152.03,6.57764914]
[1751294855179,0.65759189,152.09,152.03,6.57764914]
[1751294855484,8.8007778,152.05,152.03,6.57764914]
[1751294856285,8.8007778,152.06,152.03,6.57764914]
[1751294856461,8.8007778,152.05,152.03,6.57764914]
[1751294856778,8.8007778,152.04,152.02,6.42]
[1751294856987,8.8007778,152.03,152.0,87.8]
[1751294857162,28.24009189,152.07,152.01,6.57820906]
[1751294857962,6.57635144,152.06,152.01,6.57820906]
[1751294858172,0.65759189,152.05,152.0,6.77878334]
[1751294858382,8.8007778,152.01,152.0,6.77878334]
[1751294859479,8.8007778,152.02,152.0,6.77878334]
[1751294860787,8.8007778,152.01,152.0,6.77878334]
[1751294862385,8.8007778,152.01,152.0,94.37878334]
[1751294863080,8.8007778,152.01,152.0,87.8]
[1751294863392,8.8007778,152.01,152.0,0.2]
[1751294863772,0.65759189,152.03,152.0,0.2]
[1751294863985,8.8007778,152.01,152.0,0.2]
[1751294864179,8.8007778,152.01,152.0,6.77894296]
[1751294864388,8.8007778,152.01,152.0,0.2]
[1751294866471,16.03688426,152.01,152.0,0.2]
[1751294866674,9.45836969,152.01,152.0,0.2]
[1751294869996,71.28343406,152.01,152.0,0.2]
[1751294870171,18.64964886,152.0,151.96,0.2]
[1751294870501,8.8007778,151.97,151.96,0.2]